Period,Quarter,"Recipient Name",City,Province,Country,Title,Language,Genre,Date,"Final Value","Original Value",Type,Purpose,Comments
2018-2019,P4,"Serendipity Point Films Inc.",Toronto,Ontario,Canada,Feral,English,Thriller,2019-01-25,198189.00,18232.00,Advance,"Development Program","Amended contract signed  22-DEC-16"
2018-2019,P4,"Distribution H264",Montreal,Quebec,Canada,"Fauve et Marguerite",French,"Drama (Film)",2019-01-31,20000.00,20000.00,Contribution,"International Marketing Program",
2018-2019,P4,"Pope Productions Ltd.","St. John's",Newfoundland/Labrador,Canada,"East of West",English,"Drama (Film)",2019-02-05,0.00,15000.00,Advance,"Development Program","Amended contract signed  28-JUN-16"
2018-2019,P4,"Films S�ville Inc. (Les) / Seville Pictures Inc.",Montreal,Quebec,Canada,"HOCHELAGA, TERRE DES �MES",French,"Historical Drama",2019-02-07,92565.00,100000.00,Contribution,"International Marketing Program","Amended contract signed  17-NOV-17"
2018-2019,P4,"Brother Productions Inc.","North Vancouver","British Columbia",Canada,"Brother (The)",English,"Drama (Film)",2019-02-11,558000.00,620000.00,Equity,"Production Program","Amended contract signed  27-MAR-13"
2018-2019,P4,"January Films Ltd.",Toronto,Ontario,Canada,"000122634 - Inconceivable",English,Comedy,2019-02-12,35154.00,34900.00,Advance,"Development Program","Amended contract signed  07-MAR-13"
2018-2019,P4,"Buck Productions Inc.",Toronto,Ontario,Canada,CTRL,English,Sci.fi./Fantasy/Tale,2019-02-12,3980.00,15000.00,Advance,"Development Program","Amended contract signed  10-NOV-16"
2018-2019,P4,"Productions Dixie Inc. (les)",Montreal,Quebec,Canada,"Out Late",English,Comedy,2019-02-14,64233.00,1500000.00,Equity,"Production Program","Amended contract signed  29-MAR-17"
2018-2019,P4,"Films S�ville Inc. (Les) / Seville Pictures Inc.",Montreal,Quebec,Canada,"Juste la fin du monde",French,"Drama (Film)",2019-02-18,90000.00,100000.00,Contribution,"International Marketing Program","Amended contract signed  19-JAN-17"
2018-2019,P4,"Attraction Distribution Internationale Inc. / Attraction International Distribution Inc.",Montreal,Quebec,Canada,"Nitro Rush",French,Action/Adventure,2019-02-18,2626.00,3400.00,Contribution,"International Marketing Program","Amended contract signed  01-JUN-16"
2018-2019,P4,"Infinity Features Development Inc.",Vancouver,"British Columbia",Canada,"SLATE - Infinity Features Development Inc.",English,N/A,2019-02-18,200000.00,250000.00,Advance,"Development Program","Amended contract signed  07-MAR-08"
2018-2019,P4,"9269-0791 Qu�bec Inc.",Montreal,Quebec,Canada,"Montr�al la blanche",French,"Drama (Film)",2019-02-19,1546.00,2700.00,Contribution,"International Marketing Program","Amended contract signed  12-FEB-16"
2018-2019,P4,"Keystone Pictures Inc.",Vancouver,"British Columbia",Canada,"SLATE - Keystone Pictures Inc.",English,N/A,2019-02-19,146400.00,183000.00,Advance,"Development Program","Amended contract signed  17-FEB-09"
2018-2019,P4,"Parnassus Productions Inc.",Vancouver,"British Columbia",Canada,"Imaginarium of Dr. Parnassus (The)",English,Sci.fi./Fantasy/Tale,2019-02-20,1704349.00,1000000.00,Equity,"Production Program","Amended contract signed  06-MAR-08"
2018-2019,P4,"A Media Inc.",Montreal,Quebec,Canada,Morissette,French,"Drama (Film)",2019-03-22,0.00,15000.00,Advance,"Development Program","Amended contract signed  29-JUN-16"
2018-2019,P4,"PCF Ballerina Le film Inc.",Montreal,Quebec,Canada,Ballerina,English,Drama,2019-02-19,1224445.00,1250000.00,Investment,"Production Program","Amended Contract Signed 23-Dec-2013"
2018-2019,P4,"9012-6640 Qu�bec inc. (K-Films Am�rique)",Montreal,Quebec,Canada,"Bruit des arbres (Le)",French,Drama,2019-02-19,30000.00,60000.00,Advance,"Marketing Program","Amended Contract Signed 25-Nov-2014"
2018-2019,P4,"Weirdos The Film Inc.",Halifax,"Nova Scotia",Canada,WEIRDOS,English,Drama,2019-01-23,699136.00,450000.00,Investment,"Production Program","Amended Contract Signed 15-Sep-2015"
2018-2019,P4,"YXY Productions Inc.",Burnaby,"British Columbia",Canada,"No Men Beyond This Point",English,Comedy,2019-02-19,16687.00,22500.00,Advance,"Marketing Program","Amended Contract Signed 12-Jan-2016"
2018-2019,P4,"9220-5368 Qu�bec Inc.","Ste-Famille I.O.",Quebec,Canada,"Chute de Sparte (La)",French,Drama,2019-02-20,1030000.00,1000000.00,Investment,"Production Program","Amended Contract Signed 15-Sep-2016"
2018-2019,P4,"Christal Films Productions Inc.",Montreal,Quebec,Canada,"Hana's Suitcase",English,"Historical Drama",2019-01-24,89245.00,200000.00,Advance,"Production Program","Amended Contract Signed 30-Mar-2017"
2018-2019,P4,"Mongrel Media Inc.",Toronto,Ontario,Canada,"Initiative iTunes - Canada 150 (Mongrel Media Inc.)",,,2019-03-25,12846.00,10608.00,Contribution,"Promotion Program","Amended Contract Signed 15-Jun-2017"
2018-2019,P4,"Evolution Agency Productions Inc.",Toronto,Ontario,Canada,"Sugar Daddy",English,Drama,2019-02-11,350000.00,350000.00,Investment,"Production Program",
2018-2019,P4,"Sienna Films Productions XVIII INC.",Toronto,Ontario,Canada,"Happy Place",English,Drama,2019-03-27,1200000.00,1200000.00,Investment,"Production Program",
2018-2019,P4,"Eye Steel Film Distribution inc.",Montreal,Quebec,Canada,"Let There Be Light",English,,2019-02-05,31334.00,31407.00,Advance,"Marketing Program","Amended Contract Signed 07-Dec-2017"
2018-2019,P4,"Rhombus Possessor Inc.",Toronto,Ontario,Canada,Possessor,English,Drama,2019-03-20,0.00,150000.00,Advance,"Production Program","Amended Contract Signed 06-Oct-2017"
2018-2019,P4,"Rhombus Possessor Inc.",Toronto,Ontario,Canada,Possessor,English,Drama,2019-03-20,150000.00,0.00,Investment,"Production Program","Amended Contract Signed 06-Oct-2017"
2018-2019,P4,"9231-8419 Qu�bec Inc. dba Productions Parabola",Montreal,Quebec,Canada,Billy,English,Documentary,2019-03-14,125000.00,125000.00,Contribution,"Theatrical Documentary Program",
2018-2019,P4,"Insight Lightfoot Ltd.",Toronto,Ontario,Canada,"Gordon Lightfoot: If You Could Read My Mind",English,Documentary,2019-02-28,125000.00,125000.00,Contribution,"Theatrical Documentary Program",
2018-2019,P4,"Charlotte Productions Inc.",Toronto,Ontario,Canada,CHARLOTTE,English,"Historical Drama",2019-01-09,2300000.00,2300000.00,Investment,"Production Program",
2018-2019,P4,"9321-3023 Qu�bec Inc.",Montreal,Quebec,Canada,Vinland,French,"Historical Drama",2019-03-28,1400000.00,1400000.00,Advance,"Production Program",
2018-2019,P4,"Funfilm Distribution Inc.",Montreal,Quebec,Canada,Venus,English,,2019-02-06,36250.00,45000.00,Advance,"Marketing Program","Amended Contract Signed 20-Mar-2018"
2018-2019,P4,"F�lix et le tr�sor de Morg�a inc.",Saint-Augustin-de-Desmaures,Quebec,Canada,"F�lix et le tr�sor de Morg�a",French,Action/Adventure,2019-02-08,1100000.00,1100000.00,Advance,"Production Program",
2018-2019,P4,"Run This Town Film Inc.",Toronto,Ontario,Canada,"Run This Town",English,Drama,2019-02-25,1275000.00,1200000.00,Investment,"Production Program","Amended Contract Signed 19-Apr-2018"
2018-2019,P4,"Level Film Inc.",Toronto,Ontario,Canada,"Another Kind of Wedding",English,,2019-01-28,25508.00,30000.00,Advance,"Marketing Program","Amended Contract Signed 27-Mar-2018"
2018-2019,P4,"Films S�ville Inc. (Les)",Montreal,Quebec,Canada,"POUR VIVRE ICI",French,Drama,2019-02-04,113566.00,127950.00,Advance,"Marketing Program","Amended Contract Signed 23-Mar-2018"
2018-2019,P4,"Samuel Goldwyn Films, LLC","Culver City",California,"United States",Allure,English,Drama,2019-03-25,29500.00,29500.00,Contribution,"Export Assistance Program",
2018-2019,P4,"PCF Bravest Le Film  Inc.",Montreal,Quebec,Canada,"Fireheart - (aka The Bravest)",English,Comedy,2019-03-27,4000000.00,4000000.00,Investment,"Production Program",
2018-2019,P4,"Sienna Films Inc.",Toronto,Ontario,Canada,"Sweetness In The Belly",English,Drama,2019-01-29,0.00,324884.00,Advance,"Production Program","Amended Contract Signed 02-May-2018"
2018-2019,P4,"Sienna Films Inc.",Toronto,Ontario,Canada,"Sweetness In The Belly",English,Drama,2019-01-29,324884.00,0.00,Investment,"Production Program","Amended Contract Signed 02-May-2018"
2018-2019,P4,"9232-2437 Qu�bec Inc.",Montreal,Quebec,Canada,"My Salinger Year",English,Drama,2019-03-28,3150000.00,3150000.00,Investment,"Production Program",
2018-2019,P4,"9324-3160 Qu�bec Inc.",Montreal,Quebec,Canada,"Les barbares de la Malbaie",French,Drama,2019-03-18,500000.00,500000.00,Contribution,"Production Program",
2018-2019,P4,"Les Films 1976 Inc.",Montreal,Quebec,Canada,Saint-Narcisse,English,"Romantic Comedy",2019-03-08,300000.00,300000.00,Contribution,"Production Program",
2018-2019,P4,"Vase Films Inc.","West Pennant","Nova Scotia",Canada,"Tin Can",English,"Science fiction/Fantasy/Tale",2019-01-31,302897.00,302897.00,Contribution,"Production Program",
2018-2019,P4,"Films Christal, s.e.c.(Les), agissant par l'interm�diaire de son commandit�, Les Films Christal Inc",Montreal,Quebec,Canada,Allure,English,,2019-02-19,93268.00,97012.00,Advance,"Marketing Program","Amended Contract Signed 27-Aug-2018"
2018-2019,P4,"10619248 Canada Inc.",Montreal,Quebec,Canada,SLAXX,English,Horror,2019-02-13,400000.00,400000.00,Contribution,"Production Program",
2018-2019,P4,"Running Home Productions Inc.",Toronto,Ontario,Canada,"Running Home",English,"Romantic Comedy",2019-03-26,600000.00,600000.00,Investment,"Production Program",
2018-2019,P4,"Resonance Films Inc.",Vancouver,"British Columbia",Canada,"THREE TO GET READY",English,"Romantic Comedy",2019-03-26,400000.00,400000.00,Investment,"Production Program",
2018-2019,P4,"9393-7654 Qu�bec Inc.",Montreal,Quebec,Canada,"LIKE A HOUSE ON FIRE",English,Drama,2019-03-26,400000.00,400000.00,Contribution,"Production Program",
2018-2019,P4,"Voyelles Films Productions inc.",Montreal,Quebec,Canada,"Nouveau Qu�bec",French,Drama,2019-03-06,500000.00,500000.00,Contribution,"Production Program",
2018-2019,P4,"Carmen Has Been Touched Film Inc.",Toronto,Ontario,Canada,"Carmen Has Been Touched",English,Drama,2019-03-14,450000.00,450000.00,Investment,"Production Program",
2018-2019,P4,"9393-9866 Qu�bec inc.",Montreal,Quebec,Canada,"Montreal Girls",English,Drama,2019-03-25,300000.00,300000.00,Investment,"Production Program",
2018-2019,P4,"Midnight Blue Pictures Inc",Halifax,"Nova Scotia",Canada,"Night Blooms",English,Drama,2019-03-12,262000.00,262000.00,Contribution,"Production Program",
2018-2019,P4,"Range Road 83 Productions Inc.",Calgary,Alberta,Canada,"Range Roads",English,Drama,2019-02-05,170000.00,170000.00,Contribution,"Production Program",
2018-2019,P4,"COS Productions Inc.",Winnipeg,Manitoba,Canada,"CINEMA OF SLEEP",English,Mystery/Crime/Police,2019-03-25,400000.00,400000.00,Investment,"Production Program",
2018-2019,P4,"The Ballad of Audrey Earnshaw Film Inc.",Lethbridge,Alberta,Canada,"The Ballad of Audrey Earnshaw",English,Horror,2019-02-26,445000.00,445000.00,Contribution,"Production Program",
2018-2019,P4,"Films Christal, s.e.c.(Les), agissant par l'interm�diaire de son commandit�, Les Films Christal Inc",Montreal,Quebec,Canada,"Un jour mon prince",French,,2019-02-19,15309.00,20336.00,Advance,"Marketing Program","Amended Contract Signed 06-Aug-2018"
2018-2019,P4,"Family Farm Films Ltd.","Rose Bay","Nova Scotia",Canada,"Under the Weather",English,Drama,2019-03-05,400000.00,400000.00,Contribution,"Production Program",
2018-2019,P4,"SWTPS Production Inc.",Toronto,Ontario,Canada,"Sex With The Perfect Stranger",English,Drama,2019-03-11,134260.00,134260.00,Investment,"Production Program",
2018-2019,P4,"11184261 Canada Inc.",Montreal,Quebec,Canada,"The Winter Lake",English,Thriller,2019-03-07,107270.00,107270.00,Investment,"Production Program",
2018-2019,P4,"9219226 CANADA INC",Charlottetown,"Prince Edward Island",Canada,"A Small Fortune",English,Thriller,2019-03-20,350000.00,350000.00,Investment,"Production Program",
2018-2019,P4,"Hired Hands Productions Ltd.",Edmonton,Alberta,Canada,"Hands that Bind",English,Drama,2019-02-14,220000.00,220000.00,Contribution,"Production Program",
2018-2019,P4,"Medium Density Fibreboard Films Inc.",Toronto,Ontario,Canada,"Fall from the Sky",English,Drama,2019-02-18,75000.00,75000.00,Contribution,"Production Program",
2018-2019,P4,"Medium Density Fibreboard Films Inc.",Toronto,Ontario,Canada,"Fail to Appear",English,Drama,2019-01-28,14019.00,14019.00,Advance,"Marketing Program",
2018-2019,P4,"1459479 Alberta Inc. dba Raging River Productions",Calgary,Alberta,Canada,"Red River",English,Drama,2019-02-26,400000.00,400000.00,Investment,"Production Program",
2018-2019,P4,"Relay Station Development Inc.",Toronto,Ontario,Canada,"Ordinary Days",English,Drama,2019-03-29,3700.00,3700.00,Contribution,"International Marketing Program",
2018-2019,P4,"D Films Corporation",Toronto,Ontario,Canada,"Through Black Spruce",English,,2019-03-04,241593.00,394125.00,Advance,"Marketing Program","Amended Contract Signed 31-Aug-2018"
2018-2019,P4,"Entertainment One Films Canada Inc.",Toronto,Ontario,Canada,Birthmarked,English,,2019-02-19,31846.00,34659.00,Advance,"Marketing Program","Amended Contract Signed 14-Aug-2018"
2018-2019,P4,"673709 NB Inc.",Moncton,"New Brunswick",Canada,"Mr. Freeze et Allumette",French,Action/Adventure,2019-03-28,500000.00,500000.00,Contribution,"Production Program",
2018-2019,P4,"Uncle Bob Films Ltd.","Rose Bay","Nova Scotia",Canada,"A Killing in the Woods",English,Thriller,2019-03-28,250000.00,250000.00,Investment,"Production Program",
2018-2019,P4,"What Walaa Wants Productions Inc.",Toronto,Ontario,Canada,"What Walaa Wants",English,,2019-03-29,500.00,500.00,Contribution,"International Marketing Program",
2018-2019,P4,"What Walaa Wants Productions Inc.",Toronto,Ontario,Canada,"What Walaa Wants",English,,2019-03-29,1500.00,1500.00,Contribution,"International Marketing Program",
2018-2019,P4,"Canadian Film in the Schools",Toronto,Ontario,Canada,"Canadian Film in the Schools-National Canadian Film Day",,,2019-02-19,229113.00,154113.00,Contribution,"Promotion Program","Amended Contract Signed 13-Jun-2018"
2018-2019,P4,"L'Oeil Fou inc.",Montreal,Quebec,Canada,"Pervers ordinaire",French,Mystery/Crime/Police,2019-01-23,17756.00,25000.00,Advance,"Marketing Program","Amended Contract Signed 29-Aug-2018"
2018-2019,P4,"January Films Ltd.",Toronto,Ontario,Canada,CHARLOTTE,English,"Historical Drama",2019-01-16,0.00,200000.00,Advance,"Production Program","Amended Contract Signed 24-Jul-2018"
2018-2019,P4,"January Films Ltd.",Toronto,Ontario,Canada,CHARLOTTE,English,"Historical Drama",2019-01-16,200000.00,0.00,Investment,"Production Program","Amended Contract Signed 24-Jul-2018"
2018-2019,P4,"Toronto International Film Festival Inc.",Toronto,Ontario,Canada,"Toronto International Film Festival",,,2019-02-21,992710.00,992710.00,Contribution,"Promotion Program",
2018-2019,P4,"Bad Bannock Productions Inc.",Cawston,"British Columbia",Canada,"The Bannocking",English,Horror,2019-01-29,125000.00,125000.00,Contribution,"Talent To Watch Program",
2018-2019,P4,"2645442 ONTARIO INC.",Toronto,Ontario,Canada,Islands,English,Drama,2019-01-11,125000.00,125000.00,Contribution,"Talent To Watch Program",
2018-2019,P4,"Interwoven Films Inc",Halifax,"Nova Scotia",Canada,"Out of Patience (formerly Carecroft)",English,Drama,2019-01-03,125000.00,125000.00,Contribution,"Talent To Watch Program",
2018-2019,P4,"Scarab Films Inc.",Toronto,Ontario,Canada,Hate,English,Drama,2019-01-04,125000.00,125000.00,Contribution,"Talent To Watch Program",
2018-2019,P4,"This Place Film Incorporated",Toronto,Ontario,Canada,"This Place",English,Drama,2019-01-09,125000.00,125000.00,Contribution,"Talent To Watch Program",
2018-2019,P4,"Village Keeper Inc.",Scarborough,Ontario,Canada,"Village Keeper",English,Drama,2019-01-14,125000.00,125000.00,Contribution,"Talent To Watch Program",
2018-2019,P4,"World Beyond Pictures Ltd.",Victoria,"British Columbia",Canada,"ESLUNA: The World Beyond",English,"Science fiction/Fantasy/Tale",2019-03-19,125000.00,125000.00,Contribution,"Talent To Watch Program",
2018-2019,P4,"2647886 Ontario Inc.",Toronto,Ontario,Canada,"40 Acres",English,Thriller,2019-02-12,125000.00,125000.00,Contribution,"Talent To Watch Program",
2018-2019,P4,"Stanleyville Inc.",Toronto,Ontario,Canada,Stanleyville,English,Comedy,2019-01-09,125000.00,125000.00,Contribution,"Talent To Watch Program",
2018-2019,P4,"Imagine That Productions Inc.",Paradise,Newfoundland/Labrador,Canada,"Little Orphans",English,Drama,2019-01-08,125000.00,125000.00,Contribution,"Talent To Watch Program",
2018-2019,P4,"Intuitive Pictures Inc.",Montreal,Quebec,Canada,Gift,English,Documentary,2019-02-06,20265.00,20265.00,Advance,"Marketing Program",
2018-2019,P4,"Six Island Productions Inc.",Toronto,Ontario,Canada,"The Syrian Dancer",English,Drama,2019-01-04,15000.00,15000.00,Advance,"Development Program",
2018-2019,P4,"Six Island Productions Inc.",Toronto,Ontario,Canada,L'Inspecteur,French,"Historical Drama",2019-01-04,15000.00,15000.00,Advance,"Development Program",
2018-2019,P4,"Six Island Productions Inc.",Toronto,Ontario,Canada,"The Hag",English,Horror,2019-01-04,15000.00,15000.00,Advance,"Development Program",
2018-2019,P4,"DOALM Ontario Inc.",Toronto,Ontario,Canada,"Death of a Ladies' Man",English,Drama,2019-03-22,1550000.00,1550000.00,Investment,"Production Program",
2018-2019,P4,"Atlantic Filmmakers Cooperative Limited",Halifax,"Nova Scotia",Canada,"FILM 5 and the Halifax Independent Filmmakers Festival",,,2019-01-21,26000.00,26000.00,Contribution,"Promotion Program",
2018-2019,P4,"Eagle Vision Inc.",Winnipeg,Manitoba,Canada,"The Feels Like",English,Comedy,2019-02-14,15000.00,15000.00,Advance,"Development Program",
2018-2019,P4,"Eagle Vision Inc.",Winnipeg,Manitoba,Canada,Diaspora,English,Drama,2019-02-14,15000.00,15000.00,Advance,"Development Program",
2018-2019,P4,"Eagle Vision Inc.",Winnipeg,Manitoba,Canada,"The Finality of Dusk",English,Drama,2019-02-14,15000.00,15000.00,Advance,"Development Program",
2018-2019,P4,"Films JAD Inc.",Montreal,Quebec,Canada,Ensemble,French,Documentary,2019-02-07,45000.00,45000.00,Contribution,"Theatrical Documentary Program",
2018-2019,P4,"Funfilm Distribution Inc.",Montreal,Quebec,Canada,Gen�se,French,,2019-02-06,30000.00,30000.00,Advance,"Marketing Program",
2018-2019,P4,"Film Progreso inc.",Montreal,Quebec,Canada,"La parfaite victime",French,Documentary,2019-02-22,92000.00,92000.00,Contribution,"Theatrical Documentary Program",
2018-2019,P4,"Argus Productions Inc.",Montreal,Quebec,Canada,Fondations,French,Documentary,2019-03-11,45000.00,45000.00,Contribution,"Theatrical Documentary Program",
2018-2019,P4,"Rezolution Pictures (Red Fever) Inc.",Outremont,Quebec,Canada,"Red Fever",English,Documentary,2019-03-27,100000.00,100000.00,Contribution,"Theatrical Documentary Program",
2018-2019,P4,"Downstream Documentary Productions Inc.",Saskatoon,Saskatchewan,Canada,"n�pawistam�sowin: We Will Stand Up /Life & Death on Prairies",English,Documentary,2019-03-19,75000.00,75000.00,Investment,"Theatrical Documentary Program",
2018-2019,P4,"Productions l'unit� centrale inc.",Montreal,Quebec,Canada,"La morte n'existe pas",French,Drama,2019-02-28,1500.00,1500.00,Contribution,"International Marketing Program",
2018-2019,P4,"Productions l'unit� centrale inc.",Montreal,Quebec,Canada,"Un go�t amer d'�ternit� (a.k.a. L'hiver est la derni�re saison)",French,Drama,2019-02-28,1500.00,1500.00,Contribution,"International Marketing Program",
2018-2019,P4,"EMA FILMS INC.",Montreal,Quebec,Canada,"ELORA'S DEATHWISH",English,Action/Adventure,2019-01-24,20000.00,20000.00,Advance,"Development Program",
2018-2019,P4,"EMA FILMS INC.",Montreal,Quebec,Canada,"The Ledge",English,Comedy,2019-01-24,15000.00,15000.00,Advance,"Development Program",
2018-2019,P4,"EMA FILMS INC.",Montreal,Quebec,Canada,BEANS,English,"Historical Drama",2019-01-24,20000.00,20000.00,Advance,"Development Program",
2018-2019,P4,"9219-3010 Qu�bec Inc.",Montreal,Quebec,Canada,"Jusqu'� la fin / A moment of pure joy",French,Comedy,2019-01-04,15000.00,15000.00,Advance,"Development Program",
2018-2019,P4,"9219-3010 Qu�bec Inc.",Montreal,Quebec,Canada,"La B�te",French,Comedy,2019-01-04,15000.00,15000.00,Advance,"Development Program",
2018-2019,P4,"9219-3010 Qu�bec Inc.",Montreal,Quebec,Canada,Nocebo,French,Comedy,2019-01-04,15000.00,15000.00,Advance,"Development Program",
2018-2019,P4,"Chaos A Film Company Inc.",Calgary,Alberta,Canada,Stewed,English,Comedy,2019-02-13,15000.00,15000.00,Advance,"Development Program",
2018-2019,P4,"Raven Banner Releasing Inc.",Toronto,Ontario,Canada,Supergrid,English,,2019-01-10,42487.00,42487.00,Advance,"Marketing Program",
2018-2019,P4,"Planet in Focus: International Environmental Film & Video Festival",Toronto,Ontario,Canada,"Planet in Focus Environmental Film Festival",,,2019-03-25,3000.00,3000.00,Contribution,"Promotion Program",
2018-2019,P4,"New Brunswick Filmmakers Co-operative Limited",Fredericton,"New Brunswick",Canada,"Short Film Venture Program",,,2019-01-23,15000.00,15000.00,Contribution,"Promotion Program",
2018-2019,P4,"Films Vision 4 Inc.",Montreal,Quebec,Canada,"FANNY CLOUTIER ou l�ann�e o� j�ai failli rater mon adolescence",French,Action/Adventure,2019-01-09,30000.00,30000.00,Advance,"Development Program",
2018-2019,P4,"Films Vision 4 Inc.",Montreal,Quebec,Canada,"Le g�niteur",French,Comedy,2019-01-09,15000.00,15000.00,Advance,"Development Program",
2018-2019,P4,"M2 Distributions",Marseille,,France,"Primas (previous title - Rocio)",French,Documentary,2019-01-11,15000.00,15000.00,Contribution,"Export Assistance Program",
2018-2019,P4,"The Charlottetown Film Society, Inc.",Charlottetown,"Prince Edward Island",Canada,"The Charlottetown Film Festival",,,2019-03-15,2500.00,2500.00,Contribution,"Promotion Program",
2018-2019,P4,"9164-6828 Qu�bec Inc. (d/b/a Productions Loaded Pictures)",Montreal,Quebec,Canada,"The Misunderstanding",English,Comedy,2019-01-16,15000.00,15000.00,Advance,"Development Program",
2018-2019,P4,"Serendipity Point Films Inc.",Toronto,Ontario,Canada,"All My Love, Vadim",English,Drama,2019-02-11,50673.00,50673.00,Advance,"Development Program",
2018-2019,P4,"Lyla Films Inc.",Montreal,Quebec,Canada,"H�tel Silence",French,Drama,2019-01-16,75000.00,75000.00,Advance,"Development Program",
2018-2019,P4,"Firecrackers Film Incorporated",Bolton,Ontario,Canada,Firecrackers,English,,2019-03-04,1500.00,1500.00,Contribution,"International Marketing Program",
2018-2019,P4,"Scythia Films Inc.",Toronto,Ontario,Canada,"The Eden Express",English,Drama,2019-01-18,1500.00,1500.00,Contribution,"International Marketing Program",
2018-2019,P4,"Shadow Shows Incorporated",Toronto,Ontario,Canada,"Joni Blank",English,Comedy,2019-01-03,15000.00,15000.00,Advance,"Development Program",
2018-2019,P4,"Shadow Shows Incorporated",Toronto,Ontario,Canada,"La Fille de la Coiffeuse",French,Drama,2019-01-03,15000.00,15000.00,Advance,"Development Program",
2018-2019,P4,"Howie Role Productions Inc.",Vancouver,"British Columbia",Canada,Defamer,English,Comedy,2019-01-04,15000.00,15000.00,Advance,"Development Program",
2018-2019,P4,"Productions l'unit� centrale inc.",Montreal,Quebec,Canada,"D'amour et d'hiver",French,Drama,2019-02-28,15000.00,15000.00,Advance,"Development Program",
2018-2019,P4,"Productions l'unit� centrale inc.",Montreal,Quebec,Canada,"La mort n'existe pas",French,Drama,2019-02-28,15000.00,15000.00,Advance,"Development Program",
2018-2019,P4,"Devonshire Productions Inc.",Toronto,Ontario,Canada,Mary,English,Drama,2019-03-05,15000.00,15000.00,Advance,"Development Program",
2018-2019,P4,"Devonshire Productions Inc.",Toronto,Ontario,Canada,Miromiro,English,Drama,2019-03-05,15000.00,15000.00,Advance,"Development Program",
2018-2019,P4,"Films Outsiders Inc. (Les)",Montreal,Quebec,Canada,"IL �TAIT UNE FOIS UNE ZONE DE PAIX",French,Documentary,2019-02-07,25000.00,25000.00,Advance,"Development Program",
2018-2019,P4,"Films Outsiders Inc. (Les)",Montreal,Quebec,Canada,"UNE C�R�MONIE POUR CHARLIE",French,Drama,2019-02-07,15000.00,15000.00,Advance,"Development Program",
2018-2019,P4,"Trinica Entertainment Consultants Inc.",Montreal,Quebec,Canada,"The Tree of Samhain",English,"Science fiction/Fantasy/Tale",2019-03-26,20000.00,20000.00,Advance,"Development Program",
2018-2019,P4,"1976 Productions Inc.",Montreal,Quebec,Canada,"La ligne jaune",French,Drama,2019-01-03,15000.00,15000.00,Advance,"Development Program",
2018-2019,P4,"1976 Productions Inc.",Montreal,Quebec,Canada,"Le Pacte",French,Horror,2019-01-03,15000.00,15000.00,Advance,"Development Program",
2018-2019,P4,"Documentary Organization of Canada",Toronto,Ontario,Canada,"DOC & CMPA Mission to Getting Real L.A",,,2019-02-11,10000.00,10000.00,Contribution,"Promotion Program",
2018-2019,P4,"Karma Film Inc.",Saskatoon,Saskatchewan,Canada,"The Power of Nothingness",English,Action/Adventure,2019-01-03,15000.00,15000.00,Advance,"Development Program",
2018-2019,P4,"Karma Film Inc.",Saskatoon,Saskatchewan,Canada,Boyfriend,English,Drama,2019-01-03,15000.00,15000.00,Advance,"Development Program",
2018-2019,P4,"Karma Film Inc.",Saskatoon,Saskatchewan,Canada,"The Truth About Monsters",English,"Science fiction/Fantasy/Tale",2019-01-03,15000.00,15000.00,Advance,"Development Program",
2018-2019,P4,"Holdfast Pictures Inc.",Halifax,"Nova Scotia",Canada,"Birds In Fall",English,Drama,2019-01-03,15000.00,15000.00,Advance,"Development Program",
2018-2019,P4,"Holdfast Pictures Inc.",Halifax,"Nova Scotia",Canada,"Company Town",English,Drama,2019-01-03,25000.00,25000.00,Advance,"Development Program",
2018-2019,P4,"Lockpicker Productions Inc.",Toronto,Ontario,Canada,"Reasons to Travel",English,Drama,2019-01-25,15000.00,15000.00,Advance,"Development Program",
2018-2019,P4,"Lockpicker Productions Inc.",Toronto,Ontario,Canada,"Small Victories",English,"Historical Drama",2019-01-25,15000.00,15000.00,Advance,"Development Program",
2018-2019,P4,"Rhombus Media Inc.",Toronto,Ontario,Canada,"Child's Play",English,Drama,2019-01-03,131959.00,131959.00,Advance,"Development Program",
2018-2019,P4,"Rhombus Media Inc.",Toronto,Ontario,Canada,"Massey '53",English,"Historical Drama",2019-01-03,44800.00,44800.00,Advance,"Development Program",
2018-2019,P4,"Rhombus Media Inc.",Toronto,Ontario,Canada,"One Shot Sonya",English,Western,2019-01-03,22792.00,22792.00,Advance,"Development Program",
2018-2019,P4,"Buffalo Gal Pictures Inc.",Winnipeg,Manitoba,Canada,Piimpaatow,English,Drama,2019-02-25,15000.00,15000.00,Advance,"Development Program",
2018-2019,P4,"Buffalo Gal Pictures Inc.",Winnipeg,Manitoba,Canada,Coppermine,English,"Historical Drama",2019-02-25,20000.00,20000.00,Advance,"Development Program",
2018-2019,P4,"Buffalo Gal Pictures Inc.",Winnipeg,Manitoba,Canada,"Evening Chorus",English,"Historical Drama",2019-02-25,40000.00,40000.00,Advance,"Development Program",
2018-2019,P4,"6909060 Canada Inc.",Montreal,Quebec,Canada,"Simmer Down",English,"Romantic Comedy",2019-02-21,15000.00,15000.00,Advance,"Development Program",
2018-2019,P4,"Lithium Studios Productions Inc.",Toronto,Ontario,Canada,"You Belong to Me",English,Thriller,2019-01-11,15000.00,15000.00,Advance,"Development Program",
2018-2019,P4,"Documentary Organization of Canada",Toronto,Ontario,Canada,"Festival Concierge",,,2019-03-11,8000.00,8000.00,Contribution,"Promotion Program",
2018-2019,P4,"Possibles M�dia inc.",Montreal,Quebec,Canada,"Le Fr�re",French,Drama,2019-02-04,15000.00,15000.00,Advance,"Development Program",
2018-2019,P4,"Possibles M�dia inc.",Montreal,Quebec,Canada,L'immacul�e,French,Drama,2019-02-04,15000.00,15000.00,Advance,"Development Program",
2018-2019,P4,"Mongrel Media Inc.",Toronto,Ontario,Canada,"Anthropocene: The Human Epoch",English,Documentary,2019-01-11,185178.00,185178.00,Advance,"Marketing Program",
2018-2019,P4,"DIY Films inc.",Montreal,Quebec,Canada,"Boat People: Coming Home",French,Documentary,2019-02-13,45000.00,45000.00,Contribution,"Theatrical Documentary Program",
2018-2019,P4,"9361-4378 Qu�bec inc.",Montreal,Quebec,Canada,Gen�se,French,Drama,2019-02-28,1500.00,1500.00,Contribution,"International Marketing Program",
2018-2019,P4,"Milkman Productions Inc.",Toronto,Ontario,Canada,"My Dead Dad's Porno Tapes",English,,2019-01-10,1500.00,1500.00,Contribution,"International Marketing Program",
2018-2019,P4,"9361-4378 Qu�bec inc.",Montreal,Quebec,Canada,Gen�se,French,Drama,2019-03-06,1500.00,1500.00,Contribution,"International Marketing Program",
2018-2019,P4,"Blood in the Snow Canadian Film Festival",Toronto,Ontario,Canada,"2018 Blood in The Snow Film Festival",,,2019-01-04,5000.00,5000.00,Contribution,"Promotion Program",
2018-2019,P4,"9361-4378 Qu�bec inc.",Montreal,Quebec,Canada,Gen�se,French,Drama,2019-02-28,1500.00,1500.00,Contribution,"International Marketing Program",
2018-2019,P4,"Elevation Pictures Corp.",Toronto,Ontario,Canada,"Our House",English,Horror,2019-03-04,122382.00,122382.00,Advance,"Marketing Program",
2018-2019,P4,"Filmoption International Inc.",Westmount,Quebec,Canada,"Song of Granite",English,,2019-02-08,26250.00,26250.00,Advance,"Marketing Program",
2018-2019,P4,"Screen Nova Scotia Industry Association",Halifax,"Nova Scotia",Canada,"Screen Nova Scotia Broadcaster & Distributor Forum",,,2019-01-17,3000.00,3000.00,Contribution,"Promotion Program",
2018-2019,P4,"Acad�mie canadienne du cin�ma et de la t�l�vision (section Qu�bec) Inc.",Montreal,Quebec,Canada,"Prix G�meaux / Party des 1000 / Bourses de l'Acad�mie",,,2019-03-05,141250.00,141250.00,Contribution,"Promotion Program",
2018-2019,P4,"National Screen Institute - Canada",Winnipeg,Manitoba,Canada,"National Screen Institute (NSI) training programs",,,2019-01-10,229500.00,229500.00,Contribution,"Promotion Program",
2018-2019,P4,"White Pine Pictures Inc.",Toronto,Ontario,Canada,"The Corporate Coup d'E' tat",English,Drama,2019-02-13,4000.00,4000.00,Contribution,"International Marketing Program",
2018-2019,P4,"Island Media Arts Co-Operative Limited",Charlottetown,"Prince Edward Island",Canada,"The PEI Screenwriters' Bootcamp 2019",,,2019-02-12,15000.00,15000.00,Contribution,"Promotion Program",
2018-2019,P4,"Newfoundland Independent Filmmakers Co-Operative","St. John's",Newfoundland/Labrador,Canada,"Picture Start",,,2019-01-18,49000.00,49000.00,Contribution,"Promotion Program",
2018-2019,P4,"Global Visions Festival Society",Edmonton,Alberta,Canada,"NorthwestFest 2019",,,2019-01-22,5000.00,5000.00,Contribution,"Promotion Program",
2018-2019,P4,"Reprise Films Inc.","Ville Mont-Royal",Quebec,Canada,"� nous l'�ternit�",French,Drama,2019-02-21,4700.00,4700.00,Contribution,"International Marketing Program",
2018-2019,P4,"Aqute Media Inc.",Toronto,Ontario,Canada,"Sorry For Your Loss",English,,2019-03-29,24564.00,24564.00,Advance,"Marketing Program",
2018-2019,P4,"Femmes du cinema, de la television et des m�dias num�riques",Montreal,Quebec,Canada,"Programmation annuelle et gala FCTMN",,,2019-01-31,20000.00,20000.00,Contribution,"Promotion Program",
2018-2019,P4,"Funfilm Distribution Inc.",Montreal,Quebec,Canada,"La grande noirceur",French,,2019-02-06,34000.00,34000.00,Advance,"Marketing Program",
2018-2019,P4,"Banner House Productions Inc.",Montreal,Quebec,Canada,"Untitled Smuggler Project",English,Thriller,2019-01-18,15000.00,15000.00,Advance,"Development Program",
2018-2019,P4,"9151-1766 Qu�bec Inc.",Montreal,Quebec,Canada,"Le Lys, l'�rable et le jasmin",French,Drama,2019-02-06,15000.00,15000.00,Advance,"Development Program",
2018-2019,P4,"Second Chance Productions Inc.",Vancouver,"British Columbia",Canada,Moonwalker,English,"Science fiction/Fantasy/Tale",2019-02-19,15000.00,15000.00,Advance,"Development Program",
2018-2019,P4,"Hawkeye Pictures Inc.",Toronto,Ontario,Canada,"The Honey Farm",English,Thriller,2019-02-20,15000.00,15000.00,Advance,"Development Program",
2018-2019,P4,"ZMA Productions Inc.",Montreal,Quebec,Canada,"Le dilemme",French,Drama,2019-01-22,15000.00,15000.00,Advance,"Development Program",
2018-2019,P4,"Vroom Productions Inc.",Dewittville,Quebec,Canada,Prude,English,Drama,2019-01-23,15000.00,15000.00,Advance,"Development Program",
2018-2019,P4,"Canadian Media Producers Association - Association canadienne de la production m�diatique",Toronto,Ontario,Canada,"Profile: Economic Report",,,2019-02-05,15000.00,15000.00,Contribution,"Promotion Program",
2018-2019,P4,"Reel Media Entertainment Inc.",Montreal,Quebec,Canada,Enforcer,English,Drama,2019-01-29,15000.00,15000.00,Advance,"Development Program",
2018-2019,P4,"Yukon Film Society",Whitehorse,Yukon,Canada,"Available Light Film Festival",,,2019-01-11,8813.00,8813.00,Contribution,"Promotion Program",
2018-2019,P4,"Festival International du Film sur l'Art",Montreal,Quebec,Canada,"Festival International du Film sur l'Art",,,2019-01-17,34608.00,34608.00,Contribution,"Promotion Program",
2018-2019,P4,"SHERPAS FILMS INC.",Montreal,Quebec,Canada,"Viens t'en chez nous",French,Comedy,2019-03-13,15000.00,15000.00,Advance,"Development Program",
2018-2019,P4,"Raven Banner Releasing Inc.",Toronto,Ontario,Canada,"The Hollow Child",English,,2019-02-11,40672.00,40672.00,Advance,"Marketing Program",
2018-2019,P4,"Films du Rapide-Blanc Inc.",Montreal,Quebec,Canada,"MENSONGE D'UNE NUIT D'�T�",French,Drama,2019-02-07,15000.00,15000.00,Advance,"Development Program",
2018-2019,P4,"Vlimeuses productions inc.",Montreal,Quebec,Canada,"Tous mes premiers amours",French,Drama,2019-02-06,15000.00,15000.00,Advance,"Development Program",
2018-2019,P4,"Vues d'Afrique",Montreal,Quebec,Canada,"FESTIVAL INTERNATIONAL DE CIN�MA VUES D'AFRIQUE",,,2019-03-12,21659.00,21659.00,Contribution,"Promotion Program",
2018-2019,P4,"Cineast Screen Development Limited",Halifax,"Nova Scotia",Canada,PURSUIT,English,Drama,2019-01-14,15000.00,15000.00,Advance,"Development Program",
2018-2019,P4,"Reel to Real: A Celebration Of Moving Images For Youth Society",Vancouver,"British Columbia",Canada,"Reel 2 Real International Film Festival for Youth",,,2019-01-14,7528.00,7528.00,Contribution,"Promotion Program",
2018-2019,P4,"Meridian Artists Inc.",Toronto,Ontario,Canada,"Toronto Screenwriting Conference (TSC)",,,2019-02-07,8000.00,8000.00,Contribution,"Promotion Program",
2018-2019,P4,"Clique Pictures Inc.",Toronto,Ontario,Canada,"Mush Hole",English,"Historical Drama",2019-02-14,15000.00,15000.00,Advance,"Development Program",
2018-2019,P4,"Calgary Underground Film Festival Society",Calgary,Alberta,Canada,"Calgary Underground Film Festival",,,2019-01-14,5000.00,5000.00,Contribution,"Promotion Program",
2018-2019,P4,"ON SCREEN MANITOBA INCORPORATED",Winnipeg,Manitoba,Canada,"All Access",,,2019-03-06,17000.00,17000.00,Contribution,"Promotion Program",
2018-2019,P4,"Mouthpiece (FGM) Films Inc.",Toronto,Ontario,Canada,Mouthpiece,English,Drama,2019-03-14,4500.00,4500.00,Contribution,"International Marketing Program",
2018-2019,P4,"Leona Films Inc.",Montreal,Quebec,Canada,Brotherhood,English,Drama,2019-03-14,1500.00,1500.00,Contribution,"International Marketing Program",
2018-2019,P4,"Caravane Films Productions",Chicoutimi,Quebec,Canada,"Festival REGARD / March� du court",,,2019-01-03,37159.00,37159.00,Contribution,"Promotion Program",
2018-2019,P4,"Caravane Films Productions",Chicoutimi,Quebec,Canada,"Festival REGARD / March� du court",,,2019-02-15,47159.00,37159.00,Contribution,"Promotion Program","Amended Contract Signed 03-Jan-2019"
2018-2019,P4,"Clumsy Ophelia Productions Inc.",Toronto,Ontario,Canada,"The Look of Love",English,Drama,2019-03-13,15000.00,15000.00,Advance,"Development Program",
2018-2019,P4,"Play Your Gender Inc.",Dartmouth,"Nova Scotia",Canada,"The Freeze",English,Thriller,2019-01-22,15000.00,15000.00,Advance,"Development Program",
2018-2019,P4,"Realm Productions & Advertising Inc.","Saint John","New Brunswick",Canada,Experimental,English,Horror,2019-01-21,15000.00,15000.00,Advance,"Development Program",
2018-2019,P4,"9361-4378 Qu�bec inc.",Montreal,Quebec,Canada,Gen�se,French,Drama,2019-02-28,1500.00,1500.00,Contribution,"International Marketing Program",
2018-2019,P4,"Productions cin�-sc�ne inc.",Qu�bec,Quebec,Canada,"La loi de murphy",French,Comedy,2019-02-06,15000.00,15000.00,Advance,"Development Program",
2018-2019,P4,"CCI Entertainment Ltd.",Toronto,Ontario,Canada,Sovest,English,"Historical Drama",2019-02-19,15000.00,15000.00,Advance,"Development Program",
2018-2019,P4,"Mia Film Inc.",Winnipeg,Manitoba,Canada,D�COUP(L)�,French,Drama,2019-02-13,15000.00,15000.00,Advance,"Development Program",
2018-2019,P4,"KMLT Productions Inc.",Vancouver,"British Columbia",Canada,"Body Remembers When the World Broke Open (The)",English,Drama,2019-01-31,25000.00,25000.00,Contribution,"International Marketing Program",
2018-2019,P4,"Wildling Pictures Inc.",Toronto,Ontario,Canada,"BE MY EYES",English,Thriller,2019-02-22,15000.00,15000.00,Advance,"Development Program",
2018-2019,P4,"Gearshift Films Inc.",Toronto,Ontario,Canada,Nextworld,English,"Science fiction/Fantasy/Tale",2019-02-05,15000.00,15000.00,Advance,"Development Program",
2018-2019,P4,"Opus 59 Films Inc.",Vancouver,"British Columbia",Canada,"Stanley Park",English,Drama,2019-02-22,15000.00,15000.00,Advance,"Development Program",
2018-2019,P4,"Academy Of Canadian Cinema And Television - Acad�mie Canadienne du Cin�ma et de la T�l�vision",Toronto,Ontario,Canada,"Canadian Screen Arts Festival",,,2019-03-22,37500.00,37500.00,Contribution,"Promotion Program",
2018-2019,P4,"The Film And Video Arts Society of Alberta",Edmonton,Alberta,Canada,"FAVA FEST 2019",,,2019-03-15,2500.00,2500.00,Contribution,"Promotion Program",
2018-2019,P4,"Charles Taylor Theatre & Media Arts Association",Dartmouth,"Nova Scotia",Canada,"The Emerging Lens Cultural Film Festival",,,2019-01-11,5000.00,5000.00,Contribution,"Promotion Program",
2018-2019,P4,"Northern Visions Independent Video & Film Association",Toronto,Ontario,Canada,"2019 Images Festival",,,2019-01-08,22784.00,22784.00,Contribution,"Promotion Program",
2018-2019,P4,"Across Borders Media Inc.",Victoria,"British Columbia",Canada,"Media that Matters: The Nature of Media",,,2019-01-17,5000.00,5000.00,Contribution,"Promotion Program",
2018-2019,P4,"Funfilm Distribution Inc.",Montreal,Quebec,Canada,"Une Colonie (AKA Pour toujours)",French,Drama,2019-02-06,32000.00,32000.00,Advance,"Marketing Program",
2018-2019,P4,"Winnipeg Film Group Inc.",Winnipeg,Manitoba,Canada,"Gimme Some Truth Documentary Festival",,,2019-02-20,3500.00,3500.00,Contribution,"Promotion Program",
2018-2019,P4,"The Inside Out LGBT Film Festival Inc.",Toronto,Ontario,Canada,"Toronto LGBT Film Festival",,,2019-01-11,5000.00,5000.00,Contribution,"Promotion Program",
2018-2019,P4,"Independent Web Series Creators of Canada",Toronto,Ontario,Canada,"T.O. WebFest",,,2019-01-14,5000.00,5000.00,Contribution,"Promotion Program",
2018-2019,P4,"Oakville Festivals of Film and Art",Oakville,Ontario,Canada,"Oakville Film Festival",,,2019-02-21,5000.00,5000.00,Contribution,"Promotion Program",
2018-2019,P4,"Reel Shorts Film Society","Grande Prairie",Alberta,Canada,"Reel Shorts Film Festival",,,2019-01-10,5000.00,5000.00,Contribution,"Promotion Program",
2018-2019,P4,"Alberta Media Production Industries  Association (AMPIA)",Edmonton,Alberta,Canada,"AMPIA Professional Development Initiatives",,,2019-01-17,20000.00,20000.00,Contribution,"Promotion Program",
2018-2019,P4,"Winnipeg Aboriginal Film and Video Festival Inc.",Winnipeg,Manitoba,Canada,"Winnipeg Aboriginal Film and Video Festival",,,2019-03-20,5000.00,5000.00,Contribution,"Promotion Program",
2018-2019,P4,"The Documentary Media Society",Vancouver,"British Columbia",Canada,"DOXA Documentary Film Festival",,,2019-01-24,10815.00,10815.00,Contribution,"Promotion Program",
2018-2019,P4,"Coop Spira",Qu�bec,Quebec,Canada,Acadiana,French,Documentary,2019-03-05,1500.00,1500.00,Contribution,"International Marketing Program",
2018-2019,P4,"Films S�ville Inc. (Les)",Montreal,Quebec,Canada,"La Course des Tuques",French,,2019-02-06,751914.00,751914.00,Advance,"Marketing Program",
2018-2019,P4,"Films S�ville Inc. (Les)",Montreal,Quebec,Canada,"Disparition des lucioles (La)",French,Drama,2019-02-19,1500.00,1500.00,Contribution,"International Marketing Program",
2018-2019,P4,"The Standard Model Inc.",Toronto,Ontario,Canada,"Woman in Stall",English,Drama,2019-02-15,2500.00,2500.00,Contribution,"International Marketing Program",
2018-2019,P4,"A71 Entertainment Inc.",Toronto,Ontario,Canada,"An Audience of Chairs",English,,2019-02-07,35516.00,35516.00,Advance,"Marketing Program",
2018-2019,P4,"Dreamspeakers Festival Society",Edmonton,Alberta,Canada,"Dreamspeakers Film Festival",,,2019-03-26,5000.00,5000.00,Contribution,"Promotion Program",
2018-2019,P4,"Corporation Wapikoni Mobile",Montreal,Quebec,Canada,"Katatjatuuk Kangirsumi (Chants de gorges � Kangirsuk)",French,Documentary,2019-02-18,1500.00,1500.00,Contribution,"International Marketing Program",
2018-2019,P4,"9342-5809 Qu�bec Inc.",Montreal,Quebec,Canada,"Les faux tatouages",French,Drama,2019-01-24,1500.00,1500.00,Contribution,"International Marketing Program",
2018-2019,P4,"Fragments Distribution Inc.",Montreal,Quebec,Canada,"CASH NEXUS",French,,2019-02-27,70000.00,70000.00,Advance,"Marketing Program",
2018-2019,P4,"Hogan Millar Media Inc.",Vancouver,"British Columbia",Canada,BOTERO,English,,2019-02-08,1500.00,1500.00,Contribution,"International Marketing Program",
2018-2019,P4,"Mouthpiece (FGM) Films Inc.",Toronto,Ontario,Canada,Mouthpiece,English,Drama,2019-03-06,1500.00,1500.00,Contribution,"International Marketing Program",
2018-2019,P4,"Le Film Happy Face Inc.",Montreal,Quebec,Canada,"HAPPY FACE",English,Drama,2019-01-18,5000.00,5000.00,Contribution,"International Marketing Program",
2018-2019,P4,"Microclimat Films inc.",Montreal,Quebec,Canada,"Seven Last Words (The)",French,Drama,2019-01-21,10000.00,10000.00,Contribution,"International Marketing Program",
2018-2019,P4,"Bridge Film Productions Inc.",Toronto,Ontario,Canada,"Hugh Hefner's After Dark:  Speaking Out in America",English,Documentary,2019-02-12,1500.00,1500.00,Contribution,"International Marketing Program",
2018-2019,P4,"Moon vs Sun Productions Inc.",Toronto,Ontario,Canada,"I'M GOING TO BREAK YOUR HEART",English,Documentary,2019-01-31,25000.00,25000.00,Advance,"Marketing Program",
2018-2019,P4,"Colonelle films inc.",Montreal,Quebec,Canada,"Une Colonie (AKA Pour toujours)",French,Drama,2019-01-11,25000.00,25000.00,Contribution,"International Marketing Program",
2018-2019,P4,"Productions Couzin Inc",Montreal,Quebec,Canada,"R�pertoire des villes disparues",French,"Science fiction/Fantasy/Tale",2019-01-17,25000.00,25000.00,Contribution,"International Marketing Program",
2018-2019,P4,"Level Film Inc.",Toronto,Ontario,Canada,Transformer,English,,2019-03-26,18232.00,18232.00,Advance,"Marketing Program",
2018-2019,P4,"2513073 Ontario Inc.",Toronto,Ontario,Canada,"Sharkwater: Extinction",English,,2019-01-03,1500.00,1500.00,Contribution,"International Marketing Program",
2018-2019,P4,"Firewood Films Inc.",Toronto,Ontario,Canada,"THE ACCOUNTANT OF AUSCHWITZ",English,Documentary,2019-02-18,1500.00,1500.00,Contribution,"International Marketing Program",
2018-2019,P4,"Bravo Charlie inc.",Montreal,Quebec,Canada,"Chien de garde",French,Thriller,2019-01-31,1500.00,1500.00,Contribution,"International Marketing Program",
2018-2019,P4,"2513073 Ontario Inc.",Toronto,Ontario,Canada,"Sharkwater: Extinction",English,,2019-03-04,1500.00,1500.00,Contribution,"International Marketing Program",
2018-2019,P4,"Alice B Productions Inc.",Toronto,Ontario,Canada,"The Heat: A Kitchen (R)evolution",English,Documentary,2019-01-15,1500.00,1500.00,Contribution,"International Marketing Program",
2018-2019,P4,"Films S�ville Inc. (Les)",Montreal,Quebec,Canada,"Anthropocene: The Human Epoch",English,Documentary,2019-03-28,22200.00,22200.00,Contribution,"International Marketing Program",
2018-2019,P4,"Level Film Inc.",Toronto,Ontario,Canada,"Angelique's Isle",English,,2019-02-20,26853.00,26853.00,Advance,"Marketing Program",
2018-2019,P4,"Elevation Pictures Corp.",Toronto,Ontario,Canada,"New Romantic",English,"Romantic Comedy",2019-02-20,111919.00,111919.00,Advance,"Marketing Program",
2018-2019,P4,"Level Film Inc.",Toronto,Ontario,Canada,Brotherhood,English,,2019-03-28,30030.00,30030.00,Advance,"Marketing Program",
2018-2019,P4,"Handful of Films Inc.",Edmonton,Alberta,Canada,"Fast Horse",English,,2019-01-28,1500.00,1500.00,Contribution,"International Marketing Program",
2018-2019,P4,"Productions Festives",Trois-Rivieres,Quebec,Canada,"Les petites vagues",French,,2019-01-29,1500.00,1500.00,Contribution,"International Marketing Program",
2018-2019,P4,"Northwood Productions Inc.",Toronto,Ontario,Canada,"Grizzlies (The)",English,Drama,2019-03-14,5000.00,5000.00,Contribution,"International Marketing Program",
2018-2019,P4,"CMW Productions Incorporated",Dartmouth,"Nova Scotia",Canada,"Little Grey Bubbles",English,,2019-01-15,1500.00,1500.00,Contribution,"International Marketing Program",
2018-2019,P4,"Lithium Studios Productions Inc.",Toronto,Ontario,Canada,"I Will Not Go Quietly",English,Drama,2019-02-25,1500.00,1500.00,Contribution,"International Marketing Program",
2018-2019,P4,"Elevation Pictures Corp.",Toronto,Ontario,Canada,"Indian Horse",English,,2019-03-28,25000.00,25000.00,Contribution,"Export Assistance Program",
2018-2019,P4,"Alyson Richards Productions Inc.",Hamilton,Ontario,Canada,Docking,English,,2019-03-19,1700.00,1700.00,Contribution,"International Marketing Program",
2018-2019,P4,"775 Media Corp.",Calgary,Alberta,Canada,Harpoon,English,,2019-01-25,10000.00,10000.00,Contribution,"International Marketing Program",
2018-2019,P4,"TimeLapse Pictures Productions Inc.",Toronto,Ontario,Canada,"The Stone Speakers",English,,2019-02-26,15200.00,15200.00,Contribution,"International Marketing Program",
2018-2019,P4,"Process Entertainment Inc.",Toronto,Ontario,Canada,S.O.S.,English,,2019-03-12,1500.00,1500.00,Contribution,"International Marketing Program",
2018-2019,P4,"A71 Entertainment Inc.",Toronto,Ontario,Canada,"Into Invisible Light",English,,2019-03-26,42600.00,42600.00,Advance,"Marketing Program",
2018-2019,P4,"9389-2610 Qu�bec Inc",St-Adolphe-d'Howard,Quebec,Canada,"No. 3: In the Absence of Angels",English,Drama,2019-03-29,1700.00,1700.00,Contribution,"International Marketing Program",
2018-2019,P4,"CHINA NEBULA PICTURES (TIANJIN) LTD.","Ecocity, Tianjin",Other,China,"The Breadwinner",English,,2019-03-22,45000.00,45000.00,Contribution,"Export Assistance Program",
2018-2019,P4,"40 Below Films Inc.",Winnipeg,Manitoba,Canada,Retired,English,,2019-02-11,1500.00,1500.00,Contribution,"International Marketing Program",
2018-2019,P4,"Raven Banner Releasing Inc.",Toronto,Ontario,Canada,"Level 16",English,,2019-02-20,52222.00,52222.00,Advance,"Marketing Program",
2018-2019,P4,"La Distributrice de Films",Montreal,Quebec,Canada,Imp�tus,French,Drama,2019-01-24,1500.00,1500.00,Contribution,"International Marketing Program",
2018-2019,P4,"Axia Films inc.",Montreal,Quebec,Canada,D�RIVE,French,Drama,2019-02-13,52070.00,52070.00,Advance,"Marketing Program",
2018-2019,P4,"136469 Canada Limited o/a Sphinx Productions",Toronto,Ontario,Canada,"Carmine Street Guitars",English,,2019-01-15,1500.00,1500.00,Contribution,"International Marketing Program",
2018-2019,P4,"136469 Canada Limited o/a Sphinx Productions",Toronto,Ontario,Canada,"Carmine Street Guitars",English,,2019-01-31,1500.00,1500.00,Contribution,"International Marketing Program",
2018-2019,P4,"2033161 Ontario Limited",Toronto,Ontario,Canada,"Carmine Street Guitars",English,,2019-03-26,17891.00,17891.00,Advance,"Marketing Program",
2018-2019,P4,"136469 Canada Limited o/a Sphinx Productions",Toronto,Ontario,Canada,"Carmine Street Guitars",English,,2019-01-15,1500.00,1500.00,Contribution,"International Marketing Program",
2018-2019,P4,"Diva Film Productions Inc.",Pickering,Ontario,Canada,RUN,English,,2019-01-21,1500.00,1500.00,Contribution,"International Marketing Program",
2018-2019,P4,"Verhagen Entertainment Ltd.",Vancouver,"British Columbia",Canada,"Sure as Hell",English,Drama,2019-02-27,1500.00,1500.00,Contribution,"International Marketing Program",
2018-2019,P4,"C&Y Cinema Ltd.",Toronto,Ontario,Canada,"MS Slavic 7",English,,2019-02-26,23700.00,23700.00,Contribution,"International Marketing Program",
2018-2019,P4,"Euclid 431 Pictures Inc.",Toronto,Ontario,Canada,"Giant Little Ones (The)",English,Drama,2019-01-15,1500.00,1500.00,Contribution,"International Marketing Program",
2018-2019,P4,"Euclid 431 Pictures Inc.",Toronto,Ontario,Canada,"Giant Little Ones (The)",English,Drama,2019-01-24,1500.00,1500.00,Contribution,"International Marketing Program",
2018-2019,P4,"Island Horse Productions Limited","St. John's",Newfoundland/Labrador,Canada,INSIDE,English,,2019-01-30,1500.00,1500.00,Contribution,"International Marketing Program",
2018-2019,P4,"Films S�ville Inc. (Les)",Montreal,Quebec,Canada,"Anthropocene: The Human Epoch",English,Documentary,2019-03-13,9700.00,9700.00,Contribution,"International Marketing Program",
2018-2019,P4,"Sizzle Snap Productions Inc",Burnaby,"British Columbia",Canada,O.I.,English,Drama,2019-02-01,1700.00,1700.00,Contribution,"International Marketing Program",
2018-2019,P4,"9097-4767 Qu�bec Inc.",Montreal,Quebec,Canada,"Juste moi et toi",French,Drama,2019-02-08,1500.00,1500.00,Contribution,"International Marketing Program",
2018-2019,P4,"Films Christal, s.e.c.(Les), agissant par l'interm�diaire de son commandit�, Les Films Christal Inc",Montreal,Quebec,Canada,Malek,French,,2019-02-27,41448.00,41448.00,Advance,"Marketing Program",
2018-2019,P4,"Run This Town Film Inc.",Toronto,Ontario,Canada,"Run This Town",English,,2019-03-20,8200.00,8200.00,Contribution,"International Marketing Program",
2018-2019,P4,"Mixtape VR Inc.",Toronto,Ontario,Canada,Slash/Back,English,,2019-02-21,1500.00,1500.00,Contribution,"International Marketing Program",
2018-2019,P4,"173 Films Inc",Ottawa,Ontario,Canada,Cubicle,English,Drama,2019-03-20,1500.00,1500.00,Contribution,"International Marketing Program",
2018-2019,P4,"Devonshire Productions Inc.",Toronto,Ontario,Canada,"Clear Blue (aka Mersea)",English,Drama,2019-03-18,1500.00,1500.00,Contribution,"International Marketing Program",
2018-2019,P4,"9097-4767 Qu�bec Inc.",Montreal,Quebec,Canada,"Ziva Postec.  La monteuse derri�re le film Shoah",French,Documentary,2019-02-08,4700.00,4700.00,Contribution,"International Marketing Program",
2018-2019,P4,"Featured Creatures Inc.",Toronto,Ontario,Canada,Tito,English,,2019-03-26,4200.00,4200.00,Contribution,"International Marketing Program",
2018-2019,P4,"9361-4378 Qu�bec inc.",Montreal,Quebec,Canada,Gen�se,French,Drama,2019-03-06,1500.00,1500.00,Contribution,"International Marketing Program",
2018-2019,P4,"Sideways Dog Productions Inc.","Richmond Hill",Ontario,Canada,"Who You Know",English,,2019-02-12,1500.00,1500.00,Contribution,"International Marketing Program",
2018-2019,P4,"La Distributrice de Films",Montreal,Quebec,Canada,"The Spirit Keepers of Makuta'ay",English,Documentary,2019-02-04,1700.00,1700.00,Contribution,"International Marketing Program",
2018-2019,P4,"9097-4767 Qu�bec Inc.",Montreal,Quebec,Canada,L'Amour,French,Drama,2019-02-08,3200.00,3200.00,Contribution,"International Marketing Program",
2018-2019,P4,"Maison 4:3 Inc.",Montreal,Quebec,Canada,"LE VIEIL �GE ET L'ESP�RANCE",French,Documentary,2019-03-26,36148.00,36148.00,Advance,"Marketing Program",
2018-2019,P4,"Mixtape VR Inc.",Toronto,Ontario,Canada,Slash/Back,English,,2019-02-21,1500.00,1500.00,Contribution,"International Marketing Program",
2018-2019,P4,"Level Film Inc.",Toronto,Ontario,Canada,"Riot Girls",English,,2019-03-26,24750.00,24750.00,Advance,"Marketing Program",
2018-2019,P4,"Level Film Inc.",Toronto,Ontario,Canada,Firecrackers,English,,2019-03-26,123750.00,123750.00,Advance,"Marketing Program",
2018-2019,P4,"Level Film Inc.",Toronto,Ontario,Canada,"The Incredible 25th Year of Mitzi Bearclaw",English,,2019-03-28,23100.00,23100.00,Advance,"Marketing Program",
2018-2019,P4,"Strada Films Inc.",Toronto,Ontario,Canada,"Kindness of Strangers (AKA: Secrets from the Russian Tea Room)",English,Drama,2019-03-07,25000.00,25000.00,Contribution,"International Marketing Program",
2018-2019,P4,"Hogan Millar Media Inc.",Vancouver,"British Columbia",Canada,BOTERO,English,,2019-02-22,1500.00,1500.00,Contribution,"International Marketing Program",
2018-2019,P4,"Reality Distortion Field Inc.",Vancouver,"British Columbia",Canada,Kryo,English,"Science fiction/Fantasy/Tale",2019-02-21,15000.00,15000.00,Advance,"Development Program",
2018-2019,P4,"9219-3010 Qu�bec Inc.",Montreal,Quebec,Canada,"March� de coproduction - sans projet sp�cifique",French,,2019-03-13,1500.00,1500.00,Contribution,"International Marketing Program",
2018-2019,P4,"Mongrel Media Inc.",Toronto,Ontario,Canada,Goalie,English,,2019-03-14,20872.00,20872.00,Advance,"Marketing Program",
2018-2019,P4,"Funfilm Distribution Inc.",Montreal,Quebec,Canada,"Nous sommes Gold",French,,2019-03-08,30000.00,30000.00,Advance,"Marketing Program",
2018-2019,P4,"Abramorama, LLC",Pleasantville,"New York","United States","Carmine Street Guitars",English,,2019-03-15,33000.00,33000.00,Contribution,"Export Assistance Program",
2018-2019,P4,"Filmoption International Inc.",Westmount,Quebec,Canada,"Troisi�mes noces",French,,2019-03-12,41250.00,41250.00,Advance,"Marketing Program",
2018-2019,P4,"Maestro Films Inc.",Montreal,Quebec,Canada,"L.A Tea Time (anciennement Miranda)",French,Documentary,2019-02-12,5000.00,5000.00,Contribution,"International Marketing Program",
2018-2019,P4,"Faits Divers M�dia inc",Montreal,Quebec,Canada,"Havana, from on high",French,Documentary,2019-03-08,5000.00,5000.00,Contribution,"International Marketing Program",
2018-2019,P4,"L'OEIL VIF (Faisant affaire sous le nom Les Films du 3 mars)",Montreal,Quebec,Canada,"ZIVA POSTEC: La monteuse derri�re le film Shoah",French,,2019-03-06,15000.00,15000.00,Advance,"Marketing Program",
2018-2019,P4,"Hodgee Films Inc.",Vancouver,"British Columbia",Canada,"Who Let the Dogs Out",English,Documentary,2019-03-06,5000.00,5000.00,Contribution,"International Marketing Program",
2018-2019,P4,"Films Christal, s.e.c.(Les), agissant par l'interm�diaire de son commandit�, Les Films Christal Inc",Montreal,Quebec,Canada,"Avant qu'on explose",French,,2019-03-15,168375.00,168375.00,Advance,"Marketing Program",
2018-2019,P4,"Acad�mie canadienne du cin�ma et de la t�l�vision (section Qu�bec) Inc.",Montreal,Quebec,Canada,"Soir�e des finalistes aux prix �crans canadiens 2019",,,2019-03-18,6400.00,6400.00,Contribution,"Promotion Program",
